[Event "-chT Youth Countries 2019"]
[Site "Wuerzburg"]
[Date "2019.10.03"]
[Round "3.6"]
[White "Rempe, Jonas"]
[Black "Peglau, Charis"]
[Result "1/2-1/2"]
[ECO "B79"]
[WhiteElo "1816"]
[BlackElo "1827"]
[Annotator "NA"]
[PlyCount "84"]
[EventDate "2019.10.02"]
[EventType "team-tourn"]
[EventRounds "7"]
[EventCountry "GER"]
[SourceTitle "playchess.com"]
[Source "ChessBase"]
[SourceQuality "1"]
[WhiteTeam "Schleswig-Holstein"]
[BlackTeam "Sachsen"]
[TimeControl "40/5400+30:1800+30"]

1. e4 {[%emt 0:00:00]} c5 {[%emt 0:00:00]} 2. Nf3 {[%emt 0:00:00]} Nc6 {[%emt 0:00:00]} 3. d4 {[%emt 0:00:05]} cxd4 {[%emt 0:00:00]} 4. Nxd4 {[%emt 0:00:05]} g6 {[%emt 0:00:00]} 5. Nc3 {[%emt 0:00:11]} Bg7 {[%emt 0:00:00]} 6. Be3 {[%emt 0:00:09]} Nf6 {[%emt 0:00:07]} 7. Bc4 {[%emt 0:00:09]} O-O {[%emt 0:00:23]} 8. Bb3 {[%emt 0:00:12]} d6 {[%emt 0:00:30]} 9. f3 {[%emt 0:00:06]} Bd7 {[%emt 0:00:44]} 10. Qd2 {[%emt 0:00:04]} Qa5 {[%emt 0:00:06]} 11. O-O-O {[%emt 0:00:52]} Rfc8 {[%emt 0:00:18]} 12. h4 {[%emt 0:06:45]} Ne5 {[%emt 0:00:15]} 13. Kb1 {[%emt 0:04:50]} Nc4 {[%emt 0:01:04]} 14. Bxc4 {[%emt 0:00:07]} Rxc4 {[%emt 0:00:03]} 15. Nb3 {[%emt 0:01:45]} Qc7 {[%emt 0:01:34]} 16. h5 {[%emt 0:02:25]} Nxh5 {[%emt 0:01:59]} 17. Nd5 {[%emt 0:01:18]} Qd8 {[%emt 0:00:40]} 18. g4 {[%emt 0:00:23]} Nf6 {[%emt 0:00:35]} 19. Nxf6+ {[%emt 0:00:25]} Bxf6 {[%emt 0:00:56]} 20. Qh2 {[%emt 0:00:24]} Be6 {[%emt 0:08:59]} 21. Nc5 {[%emt 0:11:16]} Rxc5 {[%emt 0:02:36]} 22. Bxc5 {[%emt 0:00:41]} Qa5 {[%emt 0:01:09]} 23. Qxh7+ {[%emt 0:05:31]} Kf8 {[%emt 0:00:07]} 24. Ba3 {[%emt 0:02:43]} Rc8 {[%emt 0:01:06]} 25. Qh6+ {[%emt 0:00:41]} Ke8 {[%emt 0:00:46]} 26. Qd2 {[%emt 0:03:01]} Bc3 {[%emt 0:01:36]} 27. Qd3 {[%emt 0:08:27]} Rc6 {[%emt 0:05:12]} 28. f4 {[%emt 0:14:14]} Bxg4 {[%emt 0:18:03]} 29. Rdg1 {[%emt 0:00:30]} Be6 {[%emt 0:03:02]} 30. Rg3 {[%emt 0:01:35]} b5 {[%emt 0:05:25]} 31. bxc3 {[%emt 0:11:00]} Qxa3 {[%emt 0:00:10]} 32. c4 {[%emt 0:00:07]} Qxd3 {[%emt 0:04:08]} 33. cxd3 {[%emt 0:03:47]} bxc4 {[%emt 0:00:23]} 34. d4 {[%emt 0:00:26]} d5 {[%emt 0:01:24]} 35. exd5 {[%emt 0:01:54]} Bxd5 {[%emt 0:00:06]} 36. Rh8+ {[%emt 0:00:39]} Kd7 {[%emt 0:00:05]} 37. Ra3 {[%emt 0:01:22]} a6 {[%emt 0:00:38]} 38. Kc2 {[%emt 0:00:20]} Rf6 {[%emt 0:00:47]} 39. Ra5 {[%emt 0:00:21]} Bc6 40. Rh4 {[%emt 0:02:50]} Be4+ {[%emt 0:07:31]} 41. Kc3 {[%emt 0:30:45]} Bd3 {[%emt 0:30:08]} 42. Rh8 {[%emt 0:06:34]} Rxf4 {[%emt 0:03:34] normal} 1/2-1/2

[Event "-chT Youth Countries 2019"]
[Site "Wuerzburg"]
[Date "2019.10.03"]
[Round "3.6"]
[White "Ermitsch, Magnus"]
[Black "Brunner, Sophia"]
[Result "1/2-1/2"]
[ECO "C12"]
[WhiteElo "1671"]
[BlackElo "1935"]
[Annotator "NA"]
[PlyCount "62"]
[EventDate "2019.10.02"]
[EventType "team-tourn"]
[EventRounds "7"]
[EventCountry "GER"]
[SourceTitle "playchess.com"]
[Source "ChessBase"]
[SourceQuality "1"]
[WhiteTeam "Berlin"]
[BlackTeam "Niedersachsen"]
[TimeControl "40/5400+30:1800+30"]

1. e4 {[%emt 0:00:02]} e6 {[%emt 0:00:00]} 2. d4 {[%emt 0:00:42]} d5 {[%emt 0:00:00]} 3. Nc3 {[%emt 0:00:40]} Nf6 {[%emt 0:00:00]} 4. Bg5 {[%emt 0:00:34]} Bb4 {[%emt 0:00:00]} 5. e5 {[%emt 0:04:13]} h6 {[%emt 0:00:06]} 6. exf6 {[%emt 0:01:58]} hxg5 {[%emt 0:00:05]} 7. fxg7 {[%emt 0:00:54]} Rg8 {[%emt 0:00:07]} 8. h4 {[%emt 0:03:27]} gxh4 {[%emt 0:00:24]} 9. a3 {[%emt 0:07:48]} Bxc3+ {[%emt 0:11:17]} 10. bxc3 {[%emt 0:00:21]} Qf6 {[%emt 0:00:22]} 11. Nf3 {[%emt 0:01:29]} Qxg7 {[%emt 0:02:41]} 12. Rxh4 {[%emt 0:00:34]} c5 {[%emt 0:08:58]} 13. Ne5 {[%emt 0:04:41]} c4 {[%emt 0:13:24]} 14. Rf4 {[%emt 0:02:07]} f6 {[%emt 0:06:25]} 15. Qh5+ {[%emt 0:01:41]} Kd8 {[%emt 0:07:03]} 16. Rg4 {[%emt 0:04:33]} Qf8 {[%emt 0:00:43]} 17. Qf7 {[%emt 0:10:36]} Rh8 {[%emt 0:04:03]} 18. Rg7 {[%emt 0:03:44]} Na6 {[%emt 0:00:44]} 19. Ng6 {[%emt 0:05:15]} Qxf7 {[%emt 0:00:41]} 20. Rxf7 {[%emt 0:00:07]} Rg8 {[%emt 0:11:42]} 21. Rxf6 {[%emt 0:00:18]} Bd7 {[%emt 0:01:05]} 22. Ne5 {[%emt 0:01:55]} Nc7 {[%emt 0:01:05]} 23. Kd2 {[%emt 0:02:42]} Be8 {[%emt 0:00:33]} 24. g3 {[%emt 0:01:50]} Ke7 {[%emt 0:00:56]} 25. Rh6 {[%emt 0:00:57]} Bf7 {[%emt 0:04:34]} 26. Rh7 {[%emt 0:00:59]} Raf8 {[%emt 0:00:12]} 27. Rb1 {[%emt 0:00:41]} b6 {[%emt 0:02:09]} 28. a4 {[%emt 0:01:38]} Ne8 {[%emt 0:04:01]} 29. a5 {[%emt 0:02:37]} Nf6 {[%emt 0:00:58]} 30. Rxf7+ {[%emt 0:00:51]} Rxf7 {[%emt 0:00:07]} 31. Nxf7 {[%emt 0:00:12]} Ne4+ {[%emt 0:01:37] normal} 1/2-1/2

[Event "-chT Youth Countries 2019"]
[Site "Wuerzburg"]
[Date "2019.10.03"]
[Round "3.6"]
[White "Schwartz, Oliver"]
[Black "Grining, Maria"]
[Result "1-0"]
[ECO "B12"]
[WhiteElo "1650"]
[BlackElo "1801"]
[Annotator "NA"]
[PlyCount "75"]
[EventDate "2019.10.02"]
[EventType "team-tourn"]
[EventRounds "7"]
[EventCountry "GER"]
[SourceTitle "playchess.com"]
[Source "ChessBase"]
[SourceQuality "1"]
[WhiteTeam "Württemberg"]
[BlackTeam "Baden 2"]
[TimeControl "40/5400+30:1800+30"]

1. e4 {[%emt 0:00:00]} c6 {[%emt 0:00:00]} 2. d4 {[%emt 0:00:00]} d5 {[%emt 0:00:00]} 3. e5 {[%emt 0:00:00]} Bf5 {[%emt 0:00:00]} 4. h4 {[%emt 0:00:00]} h5 {[%emt 0:04:50]} 5. Bd3 {[%emt 0:00:09]} Bxd3 {[%emt 0:00:38]} 6. Qxd3 {[%emt 0:00:05]} e6 {[%emt 0:01:07]} 7. Bg5 {[%emt 0:00:31]} Qb6 {[%emt 0:02:41]} 8. Nd2 {[%emt 0:00:19]} c5 {[%emt 0:01:58]} 9. c3 {[%emt 0:31:25]} Nc6 {[%emt 0:05:50]} 10. Ne2 {[%emt 0:09:26]} Nh6 {[%emt 0:07:16]} 11. O-O {[%emt 0:02:03]} Nf5 {[%emt 0:04:36]} 12. Nf3 {[%emt 0:00:19]} Be7 {[%emt 0:04:38]} 13. Rfd1 {[%emt 0:02:46]} Bxg5 {[%emt 0:10:26]} 14. hxg5 {[%emt 0:00:23]} c4 {[%emt 0:09:38]} 15. Qc2 {[%emt 0:00:52]} h4 {[%emt 0:01:31]} 16. Nf4 {[%emt 0:00:36]} Nce7 {[%emt 0:03:14]} 17. Rdb1 {[%emt 0:11:15]} h3 {[%emt 0:06:48]} 18. g3 {[%emt 0:00:52]} Qc7 {[%emt 0:11:14]} 19. Kh2 {[%emt 0:07:33]} Ng6 {[%emt 0:05:40]} 20. Nxg6 {[%emt 0:02:10]} fxg6 {[%emt 0:00:17]} 21. Ng1 {[%emt 0:02:18]} Qe7 {[%emt 0:02:02]} 22. Qd2 {[%emt 0:01:31]} O-O-O {[%emt 0:05:27]} 23. f4 {[%emt 0:02:46]} Qf7 {[%emt 0:02:54]} 24. b4 {[%emt 0:01:57]} Rd7 {[%emt 0:02:31]} 25. a4 {[%emt 0:00:43]} b6 {[%emt 0:02:54]} 26. b5 {[%emt 0:00:22]} Rb7 {[%emt 0:01:00]} 27. a5 {[%emt 0:00:44]} Qd7 {[%emt 0:01:39]} 28. Ra3 {[%emt 0:03:54]} Kd8 {[%emt 0:02:27]} 29. Qa2 {[%emt 0:00:23]} Ke7 {[%emt 0:00:18]} 30. axb6 {[%emt 0:02:14]} axb6 {[%emt 0:00:07]} 31. Ra6 {[%emt 0:01:26]} Ne3 {[%emt 0:00:25]} 32. Qe2 {[%emt 0:01:00]} Nf5 {[%emt 0:00:21]} 33. Nf3 {[%emt 0:01:54]} Qc7 {[%emt 0:00:29]} 34. Qf2 {[%emt 0:00:40]} Ra7 {[%emt 0:00:51]} 35. g4 {[%emt 0:00:31]} Nh4 {[%emt 0:00:56]} 36. Nxh4 {[%emt 0:00:09]} Rxa6 {[%emt 0:00:10]} 37. bxa6 {[%emt 0:00:07]} Qa7 {[%emt 0:00:11]} 38. Nxg6+ {[%emt 0:00:07] normal} 1-0

[Event "-chT Youth Countries 2019"]
[Site "Wuerzburg"]
[Date "2019.10.03"]
[Round "3.6"]
[White "Gressler, Christian"]
[Black "Metzdorf, Matteo"]
[Result "0-1"]
[ECO "B40"]
[WhiteElo "1464"]
[BlackElo "1862"]
[Annotator "NA"]
[PlyCount "64"]
[EventDate "2019.10.02"]
[EventType "team-tourn"]
[EventRounds "7"]
[EventCountry "GER"]
[SourceTitle "playchess.com"]
[Source "ChessBase"]
[SourceQuality "1"]
[WhiteTeam "Mecklenburg-Vorpommern"]
[BlackTeam "Rheinland-Pfalz"]
[TimeControl "40/5400+30:1800+30"]

1. e4 {[%emt 0:00:00]} c5 {[%emt 0:00:00]} 2. Nf3 {[%emt 0:00:00]} e6 {[%emt 0:00:00]} 3. d3 {[%emt 0:00:34]} Nc6 {[%emt 0:00:00]} 4. g3 {[%emt 0:00:23]} g6 {[%emt 0:00:00]} 5. Bg2 {[%emt 0:00:18]} Bg7 {[%emt 0:00:11]} 6. c3 {[%emt 0:00:41]} Nge7 {[%emt 0:01:30]} 7. O-O {[%emt 0:00:54]} e5 {[%emt 0:06:10]} 8. Re1 {[%emt 0:01:00]} d6 {[%emt 0:03:03]} 9. Nbd2 {[%emt 0:02:41]} O-O {[%emt 0:02:39]} 10. Nf1 {[%emt 0:01:02]} h6 {[%emt 0:05:39]} 11. Bd2 {[%emt 0:02:57]} Be6 {[%emt 0:04:48]} 12. h4 {[%emt 0:03:51]} f5 {[%emt 0:05:22]} 13. Qc1 {[%emt 0:12:56]} Kh7 {[%emt 0:04:09]} 14. h5 {[%emt 0:02:15]} Qd7 {[%emt 0:23:37]} 15. hxg6+ {[%emt 0:03:41]} Nxg6 {[%emt 0:00:30]} 16. exf5 {[%emt 0:00:18]} Bxf5 {[%emt 0:00:38]} 17. Qc2 {[%emt 0:01:19]} c4 {[%emt 0:04:07]} 18. Ne3 {[%emt 0:04:18]} Bxd3 {[%emt 0:03:05]} 19. Qc1 {[%emt 0:00:36]} Qf7 {[%emt 0:00:42]} 20. Nd1 {[%emt 0:04:00]} d5 {[%emt 0:06:13]} 21. Nh2 {[%emt 0:03:16]} e4 {[%emt 0:04:07]} 22. b3 {[%emt 0:07:19]} Nce5 {[%emt 0:01:49]} 23. Re3 {[%emt 0:01:50]} h5 {[%emt 0:04:35]} 24. f4 {[%emt 0:06:59]} exf3 {[%emt 0:02:24]} 25. Nxf3 {[%emt 0:00:21]} Qd7 {[%emt 0:07:15]} 26. Ng5+ {[%emt 0:04:06]} Kh8 {[%emt 0:01:19]} 27. Bh3 {[%emt 0:01:04]} Ng4 {[%emt 0:02:46]} 28. Nf2 {[%emt 0:06:53]} d4 29. Re1 {[%emt 0:05:52]} Qf5 {[%emt 0:06:51]} 30. Nxd3 {[%emt 0:05:11]} Qxd3 {[%emt 0:00:47]} 31. Bf1 {[%emt 0:04:01]} Qxg3+ {[%emt 0:00:17]} 32. Bg2 {[%emt 0:01:02]} Qh2# {normal} 0-1

[Event "-chT Youth Countries 2019"]
[Site "Wuerzburg"]
[Date "2019.10.03"]
[Round "3.7"]
[White "Kempe, Caius Emilian"]
[Black "Mundt, Alexandra"]
[Result "0-1"]
[ECO "A50"]
[WhiteElo "1835"]
[BlackElo "1760"]
[Annotator "NA"]
[PlyCount "111"]
[EventDate "2019.10.02"]
[EventType "team-tourn"]
[EventRounds "7"]
[EventCountry "GER"]
[SourceTitle "playchess.com"]
[Source "ChessBase"]
[SourceQuality "1"]
[WhiteTeam "Sachsen"]
[BlackTeam "Schleswig-Holstein"]
[TimeControl "40/5400+30:1800+30"]

1. d4 {[%emt 0:00:00]} Nf6 {[%emt 0:00:00]} 2. c4 {[%emt 0:00:00]} d5 {[%emt 0:00:00]} 3. cxd5 {[%emt 0:01:07]} Nxd5 {[%emt 0:00:00]} 4. e4 {[%emt 0:00:09]} Nb6 {[%emt 0:00:00]} 5. f3 {[%emt 0:00:52]} g6 {[%emt 0:01:42]} 6. Nc3 {[%emt 0:00:18]} Bg7 {[%emt 0:00:09]} 7. Be3 {[%emt 0:00:07]} O-O {[%emt 0:01:49]} 8. Qd2 {[%emt 0:00:06]} Nc6 {[%emt 0:05:47]} 9. O-O-O {[%emt 0:00:08]} Na5 {[%emt 0:05:10]} 10. Bf2 {[%emt 0:07:09]} a6 {[%emt 0:11:21]} 11. g4 {[%emt 0:02:39]} e5 {[%emt 0:02:41]} 12. d5 {[%emt 0:03:59]} Nac4 {[%emt 0:01:20]} 13. Bxc4 {[%emt 0:00:36]} Nxc4 {[%emt 0:00:02]} 14. Qd3 {[%emt 0:00:26]} b5 {[%emt 0:01:28]} 15. h4 {[%emt 0:03:35]} Qd6 {[%emt 0:04:43]} 16. Na4 {[%emt 0:21:16]} Qb4 {[%emt 0:24:50]} 17. b3 {[%emt 0:00:55]} Qa3+ {[%emt 0:04:44]} 18. Kb1 {[%emt 0:00:08]} bxa4 {[%emt 0:02:44]} 19. Qxc4 {[%emt 0:00:32]} axb3 {[%emt 0:02:29]} 20. Qxb3 {[%emt 0:00:33]} Qd6 {[%emt 0:01:34]} 21. Qc3 {[%emt 0:01:56]} Qd7 {[%emt 0:06:01]} 22. Bc5 {[%emt 0:04:22]} Rd8 {[%emt 0:01:37]} 23. Rh2 {[%emt 0:00:43]} a5 {[%emt 0:05:13]} 24. Rc2 {[%emt 0:01:01]} Ba6 {[%emt 0:01:29]} 25. Ba3 {[%emt 0:01:44]} Rdc8 {[%emt 0:01:30]} 26. Qc6 {[%emt 0:02:04]} Qd8 {[%emt 0:01:09]} 27. g5 {[%emt 0:03:56]} h6 {[%emt 0:03:11]} 28. gxh6 Bxh6 {[%emt 0:00:01]} 29. h5 {[%emt 0:01:04]} Rab8+ {[%emt 0:01:08]} 30. Rb2 {[%emt 0:00:22]} Rb6 31. Qc3 {[%emt 0:03:34]} gxh5 {[%emt 0:06:41]} 32. Rxb6 {[%emt 0:06:33]} cxb6 {[%emt 0:00:01]} 33. Qxe5 {[%emt 0:00:01]} Bg7 {[%emt 0:01:32]} 34. Qe7 {[%emt 0:00:45]} Bf6 {[%emt 0:02:08]} 35. Qxd8+ {[%emt 0:00:05]} Bxd8 {[%emt 0:00:08]} 36. Bd6 {[%emt 0:03:32]} Rc3 {[%emt 0:02:33]} 37. Be5 {[%emt 0:01:10]} Rc8 {[%emt 0:00:38]} 38. Bh2 {[%emt 0:02:02]} Kf8 {[%emt 0:00:44]} 39. e5 {[%emt 0:01:56]} Ke7 {[%emt 0:00:34]} 40. f4 {[%emt 0:00:32]} Bb5 {[%emt 0:00:35]} 41. Bg3 {[%emt 0:36:15]} Ke8 {[%emt 0:02:00]} 42. f5 {[%emt 0:00:00]} Rc3 {[%emt 0:03:20]} 43. Be1 {[%emt 0:00:00]} Re3 {[%emt 0:03:33]} 44. e6 {[%emt 0:00:00]} Bd3+ {[%emt 0:02:27]} 45. Kb2 {[%emt 0:00:00]} Bxf5 {[%emt 0:02:22]} 46. Bf2 {[%emt 0:00:00]} Re4 {[%emt 0:00:44]} 47. exf7+ {[%emt 0:00:00]} Kxf7 {[%emt 0:00:28]} 48. a3 {[%emt 0:00:00]} h4 {[%emt 0:06:08]} 49. Bd4 {[%emt 0:00:00]} h3 {[%emt 0:05:30]} 50. Nf3 {[%emt 0:00:00]} Bg4 {[%emt 0:05:24]} 51. Rf1 {[%emt 0:00:00]} Ke8 {[%emt 0:01:57]} 52. Kc3 {[%emt 0:03:35]} Bc7 {[%emt 0:01:27]} 53. Ng5 {[%emt 0:02:13]} Re2 {[%emt 0:00:40]} 54. Nxh3 {[%emt 0:01:13]} Bxh3 {[%emt 0:00:01]} 55. Rb1 {[%emt 0:00:00]} Bf5 {[%emt 0:01:11]} 56. Rxb6 {[%emt 0:10:40] normal} 0-1

[Event "-chT Youth Countries 2019"]
[Site "Wuerzburg"]
[Date "2019.10.03"]
[Round "3.7"]
[White "Yue, Qizhou"]
[Black "Wucherer, Sophie"]
[Result "1-0"]
[ECO "C10"]
[WhiteElo "1810"]
[BlackElo "1531"]
[Annotator "NA"]
[PlyCount "59"]
[EventDate "2019.10.02"]
[EventType "team-tourn"]
[EventRounds "7"]
[EventCountry "GER"]
[SourceTitle "playchess.com"]
[Source "ChessBase"]
[SourceQuality "1"]
[WhiteTeam "Rheinland-Pfalz"]
[BlackTeam "Mecklenburg-Vorpommern"]
[TimeControl "40/5400+30:1800+30"]

1. e4 {[%emt 0:00:00]} e6 {[%emt 0:00:00]} 2. d4 {[%emt 0:00:00]} d5 {[%emt 0:00:00]} 3. Nd2 {[%emt 0:00:00]} dxe4 {[%emt 0:00:00]} 4. Nxe4 {[%emt 0:00:00]} Bd7 {[%emt 0:00:12]} 5. Nf3 {[%emt 0:01:11]} Bc6 {[%emt 0:00:31]} 6. Nc3 {[%emt 0:03:58]} Bxf3 {[%emt 0:01:19]} 7. Qxf3 {[%emt 0:01:13]} c6 {[%emt 0:00:10]} 8. Be3 {[%emt 0:06:35]} Nf6 {[%emt 0:02:21]} 9. Bd3 {[%emt 0:05:51]} Nbd7 {[%emt 0:05:42]} 10. O-O {[%emt 0:01:43]} Bd6 {[%emt 0:00:45]} 11. Rad1 {[%emt 0:02:45]} Qc7 {[%emt 0:01:23]} 12. h3 {[%emt 0:01:32]} O-O {[%emt 0:05:54]} 13. Qe2 {[%emt 0:08:21]} Rfe8 {[%emt 0:03:38]} 14. Ne4 {[%emt 0:28:40]} Nxe4 {[%emt 0:03:52]} 15. Bxe4 {[%emt 0:00:08]} Nf6 {[%emt 0:00:16]} 16. Bd3 {[%emt 0:01:47]} Rad8 {[%emt 0:01:50]} 17. Bg5 {[%emt 0:02:58]} Be7 {[%emt 0:03:37]} 18. c3 {[%emt 0:02:25]} Nd5 {[%emt 0:12:37]} 19. Bxe7 {[%emt 0:02:16]} Rxe7 {[%emt 0:00:10]} 20. Qe4 {[%emt 0:03:46]} Nf6 {[%emt 0:00:33]} 21. Qh4 {[%emt 0:00:43]} e5 {[%emt 0:01:37]} 22. Rfe1 {[%emt 0:02:16]} Rde8 {[%emt 0:08:16]} 23. Re3 {[%emt 0:08:52]} exd4 {[%emt 0:00:59]} 24. Rxe7 {[%emt 0:02:19]} Qxe7 {[%emt 0:00:58]} 25. Qxd4 {[%emt 0:00:45]} b6 {[%emt 0:00:48]} 26. Bc4 {[%emt 0:01:06]} h6 {[%emt 0:02:23]} 27. Qd6 {[%emt 0:04:50]} Qb7 {[%emt 0:18:17]} 28. Bb3 {[%emt 0:02:12]} c5 {[%emt 0:12:35]} 29. Qd3 {[%emt 0:02:42]} g6 {[%emt 0:05:23]} 30. Qxg6+ {[%emt 0:00:16] normal} 1-0

[Event "-chT Youth Countries 2019"]
[Site "Wuerzburg"]
[Date "2019.10.03"]
[Round "3.7"]
[White "Buchholz, Maja"]
[Black "Bock, Marlon"]
[Result "0-1"]
[ECO "A13"]
[WhiteElo "1671"]
[BlackElo "1671"]
[Annotator "NA"]
[PlyCount "102"]
[EventDate "2019.10.02"]
[EventType "team-tourn"]
[EventRounds "7"]
[EventCountry "GER"]
[SourceTitle "playchess.com"]
[Source "ChessBase"]
[SourceQuality "1"]
[WhiteTeam "Hessen"]
[BlackTeam "Thüringen"]
[TimeControl "40/5400+30:1800+30"]

1. c4 {[%emt 0:00:00]} e6 {[%emt 0:00:00]} 2. g3 {[%emt 0:00:00]} d5 {[%emt 0:00:08]} 3. Bg2 {[%emt 0:00:00]} c6 {[%emt 0:00:38]} 4. Nf3 {[%emt 0:00:14]} f5 {[%emt 0:00:28]} 5. d4 {[%emt 0:03:10]} Bd6 {[%emt 0:01:55]} 6. O-O {[%emt 0:06:01]} Nf6 {[%emt 0:03:09]} 7. Nc3 {[%emt 0:05:05]} O-O {[%emt 0:02:15]} 8. c5 {[%emt 0:02:22]} Bc7 {[%emt 0:03:21]} 9. b4 {[%emt 0:01:10]} Nbd7 {[%emt 0:08:03]} 10. Ng5 {[%emt 0:09:10]} Qe7 {[%emt 0:09:13]} 11. f4 {[%emt 0:03:34]} Ne4 {[%emt 0:04:03]} 12. Ngxe4 {[%emt 0:04:01]} dxe4 {[%emt 0:02:02]} 13. Qb3 {[%emt 0:10:11]} Nf6 {[%emt 0:02:43]} 14. a4 {[%emt 0:06:54]} Nd5 {[%emt 0:04:35]} 15. Nd1 {[%emt 0:02:18]} Bd7 {[%emt 0:09:13]} 16. Nb2 {[%emt 0:02:43]} Rfb8 {[%emt 0:02:12]} 17. b5 {[%emt 0:03:57]} Qe8 {[%emt 0:12:10]} 18. bxc6 {[%emt 0:04:45]} Bxc6 {[%emt 0:01:28]} 19. Bd2 {[%emt 0:04:29]} b6 20. cxb6 {[%emt 0:06:19]} Bxb6 {[%emt 0:11:21]} 21. Qc4 Rc8 {[%emt 0:01:34]} 22. e3 {[%emt 0:02:10]} Rab8 {[%emt 0:00:44]} 23. Qa2 {[%emt 0:02:25]} Bd8 {[%emt 0:02:33]} 24. Nc4 {[%emt 0:01:14]} Be7 {[%emt 0:00:38]} 25. Ne5 {[%emt 0:01:55]} Rc7 {[%emt 0:02:01]} 26. Rfc1 {[%emt 0:00:59]} Bd7 {[%emt 0:01:24]} 27. Rxc7 {[%emt 0:01:33]} Nxc7 {[%emt 0:00:06]} 28. Bf1 {[%emt 0:02:50]} Nd5 {[%emt 0:00:16]} 29. Bc4 {[%emt 0:00:30]} Bc6 {[%emt 0:00:54]} 30. Nxc6 {[%emt 0:01:11]} Qxc6 {[%emt 0:00:02]} 31. Rc1 {[%emt 0:00:48]} Qd7 {[%emt 0:00:58]} 32. Bb5 {[%emt 0:02:00]} Qd8 {[%emt 0:00:30]} 33. Rc6 {[%emt 0:00:44]} Kf7 {[%emt 0:00:08]} 34. Ra6 {[%emt 0:01:28]} Qc7 {[%emt 0:00:42]} 35. Rc6 {[%emt 0:01:11]} Qd8 {[%emt 0:00:08]} 36. Qc4 {[%emt 0:01:40]} h5 {[%emt 0:02:48]} 37. Kg2 {[%emt 0:00:39]} h4 {[%emt 0:00:38]} 38. a5 {[%emt 0:04:09]} hxg3 {[%emt 0:00:17]} 39. hxg3 {[%emt 0:00:04]} Bb4 {[%emt 0:01:26]} 40. Bc1 {[%emt 0:02:56]} Qxa5 {[%emt 0:00:25]} 41. Ba6 {[%emt 0:31:42]} Bd2 {[%emt 0:30:52]} 42. Kf2 {[%emt 0:00:00]} Bxc1 {[%emt 0:00:00]} 43. Qxc1 {[%emt 0:00:00]} Qa2+ {[%emt 0:00:00]} 44. Be2 {[%emt 0:00:00]} Rb2 {[%emt 0:00:00]} 45. Qf1 {[%emt 0:00:00]} Nb4 {[%emt 0:00:00]} 46. Rc7+ {[%emt 0:00:00]} Kf6 {[%emt 0:00:00]} 47. g4 {[%emt 0:00:00]} Nd3+ {[%emt 0:00:00]} 48. Kg3 {[%emt 0:00:00]} Rxe2 {[%emt 0:00:00]} 49. Qg1 {[%emt 0:00:00]} Qd2 {[%emt 0:00:00]} 50. Kh4 {[%emt 0:00:00]} Qxe3 {[%emt 0:00:00]} 51. Kh5 {[%emt 0:00:28]} Qh3# {normal} 0-1

[Event "-chT Youth Countries 2019"]
[Site "Wuerzburg"]
[Date "2019.10.03"]
[Round "3.7"]
[White "Bungarten, Jona"]
[Black "Haubold, Sebastian Marcel"]
[Result "1-0"]
[ECO "C50"]
[WhiteElo "1669"]
[BlackElo "1585"]
[Annotator "NA"]
[PlyCount "129"]
[EventDate "2019.10.02"]
[EventType "team-tourn"]
[EventRounds "7"]
[EventCountry "GER"]
[SourceTitle "playchess.com"]
[Source "ChessBase"]
[SourceQuality "1"]
[WhiteTeam "Nordrhein-Westfalen"]
[BlackTeam "Sachsen-Anhalt"]
[TimeControl "40/5400+30:1800+30"]

1. e4 {[%emt 0:00:00]} e5 {[%emt 0:00:00]} 2. Nf3 {[%emt 0:00:00]} Nc6 {[%emt 0:00:00]} 3. Bc4 {[%emt 0:00:00]} Bc5 {[%emt 0:00:47]} 4. O-O {[%emt 0:00:40]} Nf6 {[%emt 0:05:03]} 5. d4 {[%emt 0:00:52]} Bxd4 {[%emt 0:04:51]} 6. Nxd4 {[%emt 0:00:09]} Nxd4 {[%emt 0:04:13]} 7. f4 {[%emt 0:00:11]} d6 {[%emt 0:05:51]} 8. fxe5 {[%emt 0:00:08]} dxe5 {[%emt 0:01:50]} 9. Bg5 {[%emt 0:00:09]} Be6 {[%emt 0:12:56]} 10. Na3 {[%emt 0:00:09]} Qe7 {[%emt 0:10:15]} 11. c3 {[%emt 0:00:12]} Bxc4 {[%emt 0:02:15]} 12. Bxf6 gxf6 13. Nxc4 {[%emt 0:00:25]} Nc6 {[%emt 0:00:39]} 14. b4 {[%emt 0:01:57]} Rg8 {[%emt 0:12:00]} 15. Ne3 {[%emt 0:00:48]} Rg6 {[%emt 0:03:42]} 16. a4 {[%emt 0:02:23]} a5 {[%emt 0:10:35]} 17. Nd5 {[%emt 0:02:19]} Qd6 {[%emt 0:00:36]} 18. Qf3 {[%emt 0:06:52]} O-O-O {[%emt 0:02:19]} 19. Rad1 {[%emt 0:00:25]} Qe6 {[%emt 0:01:01]} 20. b5 {[%emt 0:00:27]} Ne7 {[%emt 0:00:28]} 21. Ne3 {[%emt 0:09:25]} Qb3 {[%emt 0:02:14]} 22. c4 {[%emt 0:02:35]} Qb4 {[%emt 0:02:14]} 23. Qh3+ {[%emt 0:00:13]} f5 {[%emt 0:06:44]} 24. Nxf5 {[%emt 0:06:59]} Nxf5 {[%emt 0:03:05]} 25. Qxf5+ {[%emt 0:00:14]} Re6 {[%emt 0:00:05]} 26. Rxd8+ {[%emt 0:00:30]} Kxd8 {[%emt 0:00:42]} 27. Qxf7 {[%emt 0:00:07]} Qc5+ {[%emt 0:00:45]} 28. Kh1 {[%emt 0:00:38]} Rg6 {[%emt 0:03:53]} 29. Qxh7 {[%emt 0:03:00]} Re6 {[%emt 0:04:04]} 30. Qg8+ {[%emt 0:00:46]} Re8 {[%emt 0:00:26]} 31. Qd5+ {[%emt 0:00:53]} Qxd5 {[%emt 0:00:08]} 32. cxd5 {[%emt 0:00:07]} Kd7 {[%emt 0:00:29]} 33. Rf7+ {[%emt 0:00:25]} Kd6 {[%emt 0:00:14]} 34. g4 {[%emt 0:00:17]} Rg8 {[%emt 0:00:20]} 35. h3 {[%emt 0:00:13]} c6 {[%emt 0:00:41]} 36. bxc6 {[%emt 0:00:20]} bxc6 {[%emt 0:00:04]} 37. Rf6+ {[%emt 0:00:04]} Kc5 {[%emt 0:00:04]} 38. Rxc6+ {[%emt 0:00:08]} Kd4 {[%emt 0:00:08]} 39. d6 {[%emt 0:02:53]} Kxe4 {[%emt 0:00:07]} 40. d7 {[%emt 0:00:07]} Rd8 {[%emt 0:00:06]} 41. Rd6 {[%emt 0:30:14]} Kf3 {[%emt 0:32:16]} 42. Kg1 {[%emt 0:05:04]} e4 {[%emt 0:01:33]} 43. Kf1 {[%emt 0:00:17]} e3 {[%emt 0:00:27]} 44. Rd3 {[%emt 0:00:08]} Ke4 {[%emt 0:00:22]} 45. Ke2 {[%emt 0:00:06]} Kf4 {[%emt 0:00:19]} 46. Rd4+ {[%emt 0:00:26]} Kg5 {[%emt 0:01:27]} 47. Kxe3 {[%emt 0:00:08]} Kh4 {[%emt 0:00:18]} 48. Ke4 {[%emt 0:00:12]} Kg5 {[%emt 0:00:00]} 49. Ke5 {[%emt 0:00:00]} Kg6 {[%emt 0:00:00]} 50. Ke6 {[%emt 0:00:00]} Kg7 {[%emt 0:00:00]} 51. Ke7 {[%emt 0:00:00]} Rf8 {[%emt 0:00:00]} 52. d8=Q {[%emt 0:00:00]} Rxd8 {[%emt 0:00:00]} 53. Rxd8 {[%emt 0:00:00]} Kg6 {[%emt 0:00:00]} 54. Ra8 {[%emt 0:00:00]} Kg5 {[%emt 0:00:00]} 55. Rxa5+ {[%emt 0:00:00]} Kh4 {[%emt 0:00:00]} 56. Rh5+ {[%emt 0:00:00]} Kg3 {[%emt 0:00:00]} 57. a5 {[%emt 0:00:00]} Kf4 {[%emt 0:00:00]} 58. a6 {[%emt 0:00:00]} Ke4 {[%emt 0:00:00]} 59. a7 {[%emt 0:00:00]} Kf4 {[%emt 0:00:00]} 60. a8=Q {[%emt 0:00:00]} Ke3 {[%emt 0:00:00]} 61. Qd5 {[%emt 0:00:00]} Kf2 {[%emt 0:00:00]} 62. Qe4 {[%emt 0:00:00]} Kg3 {[%emt 0:00:00]} 63. Qf5 {[%emt 0:00:00]} Kg2 {[%emt 0:00:00]} 64. Qf4 {[%emt 0:00:00] normal} Kh1 {[%emt 0:00:00]} 65. Qd2 {[%emt 0:00:00] normal} 1-0